bitfinex/quotes_BTCUSD_20250123
["timestamp","ask_amount","ask_price","bid_price","bid_amount"]
[1737628661565,0.85496003,101840.0,101830.0,0.12404951]
[1737628662542,0.82679283,101840.0,101830.0,0.12404951]
[1737628663287,0.85496003,101840.0,101830.0,0.12404951]
[1737628663493,0.8867288,101840.0,101830.0,0.12404951]
[1737628664251,0.82679283,101840.0,101830.0,0.12404951]
[1737628664466,0.42944554,101840.0,101830.0,0.12404951]
[1737628665676,0.5175566,101840.0,101830.0,0.12404951]
[1737628674115,0.51785585,101840.0,101830.0,0.12404951]
[1737628674578,0.61213585,101840.0,101830.0,0.12404951]
[1737628676206,1.31213585,101840.0,101830.0,0.12404951]
[1737628676457,1.40948314,101840.0,101830.0,0.12404951]
[1737628677360,1.31213585,101840.0,101830.0,0.12404951]
[1737628677796,1.34717298,101840.0,101830.0,0.12404951]
[1737628678744,1.44014417,101840.0,101830.0,0.12404951]
[1737628678948,1.83617937,101840.0,101830.0,0.00034951]
[1737628681185,2.10424814,101840.0,101830.0,0.00034951]
[1737628681392,2.23929763,101840.0,101830.0,0.00034951]
[1737628681606,1.87471466,101840.0,101830.0,0.00034951]
[1737628681819,1.61751101,101840.0,101830.0,0.00034951]
[1737628682280,1.74664101,101840.0,101830.0,0.00034951]
[1737628682526,1.59722872,101840.0,101830.0,0.00034951]
[1737628682709,1.71458572,101840.0,101830.0,0.00034951]
[1737628682924,1.82581664,101840.0,101830.0,0.00034951]
[1737628683120,0.421202,101830.0,101820.0,0.08133875]
[1737628683265,1.32978021,101830.0,101820.0,0.08138915]
[1737628683470,0.32978021,101830.0,101820.0,0.08138915]
[1737628683673,0.34002361,101830.0,101820.0,0.08138915]
[1737628683905,0.34002361,101830.0,101820.0,0.12798915]
[1737628684304,0.40005956,101830.0,101820.0,0.12798915]
[1737628684769,0.39105956,101830.0,101820.0,0.12798915]
[1737628684916,0.34902361,101830.0,101820.0,0.12798915]
[1737628686132,0.34002361,101830.0,101820.0,0.12798915]
[1737628686347,0.42816087,101830.0,101820.0,0.12798915]
[1737628686759,0.57816087,101830.0,101820.0,0.12798915]
[1737628687341,0.58912694,101830.0,101820.0,0.12798915]
[1737628687775,0.62841994,101830.0,101820.0,0.12798915]
[1737628689943,0.54028268,101830.0,101820.0,0.12798915]
[1737628690562,0.52931661,101830.0,101820.0,0.12798915]
[1737628692009,0.62931661,101830.0,101820.0,0.12798915]
[1737628693728,0.71745387,101830.0,101820.0,0.12798915]
[1737628694447,0.71745387,101830.0,101820.0,5.04e-05]
[1737628694669,0.3,101790.0,101780.0,0.1966345]
[1737628694874,0.3,101790.0,101780.0,0.2948775]
[1737628694875,0.72104729,101790.0,101780.0,0.2948775]
[1737628695083,0.93051921,101790.0,101780.0,0.00019297]
[1737628695715,1.19175013,101790.0,101780.0,0.00019297]
[1737628695940,1.31475013,101790.0,101780.0,0.00019297]
[1737628696150,1.6683157,101790.0,101780.0,0.00019297]
[1737628696365,1.74708932,101790.0,101780.0,0.00019297]
[1737628696591,1.29338932,101790.0,101780.0,0.00019297]
[1737628696849,1.39073661,101790.0,101780.0,0.00019297]
[1737628697079,1.39073661,101790.0,101780.0,9.7e-07]
[1737628697080,1.42131704,101790.0,101780.0,9.7e-07]
[1737628697303,1.24252833,101790.0,101780.0,9.7e-07]
[1737628697516,1.34252833,101790.0,101780.0,9.7e-07]
[1737628697949,2.525706,101780.0,101770.0,1e-08]
[1737628698183,0.84753652,101780.0,101770.0,5.3e-07]
[1737628698389,1.75366,101770.0,101760.0,5.7e-07]
[1737628698600,0.47127,101760.0,101750.0,6.1e-07]
[1737628698818,0.89104403,101760.0,101750.0,6.1e-07]
[1737628699023,0.95017313,101760.0,101750.0,6.1e-07]
[1737628699235,1.0220949,101760.0,101750.0,6.1e-07]
[1737628699468,0.9323383,101760.0,101750.0,6.1e-07]
[1737628699885,1.0323383,101760.0,101750.0,6.1e-07]
[1737628700301,1.0323383,101760.0,101730.0,0.06932244]
[1737628700302,0.248289,101740.0,101730.0,0.06932244]
[1737628700510,1.501917,101740.0,101730.0,0.06932244]
[1737628700763,1.56869283,101740.0,101730.0,0.06932244]
[1737628701007,1.51385844,101740.0,101730.0,0.06932244]
[1737628701211,1.54807801,101740.0,101730.0,0.06932244]
[1737628701623,1.20926098,101740.0,101730.0,0.06937291]
[1737628701832,1.3204919,101740.0,101730.0,5.047e-05]
[1737628702061,1.28627233,101740.0,101730.0,5.047e-05]
[1737628702284,1.3204919,101740.0,101730.0,5.047e-05]
[1737628702484,1.3404919,101740.0,101730.0,5.047e-05]
[1737628702692,1.33997067,101740.0,101730.0,5.047e-05]
[1737628702906,1.40089441,101740.0,101730.0,5.047e-05]
[1737628703104,0.65581912,101740.0,101730.0,5.047e-05]
[1737628703338,0.77489212,101740.0,101730.0,5.047e-05]
[1737628703536,0.92489212,101740.0,101730.0,5.047e-05]
[1737628703950,0.93513552,101740.0,101730.0,5.047e-05]
[1737628704153,1.03248281,101740.0,101730.0,5.047e-05]
[1737628704364,0.40284426,101740.0,101730.0,5.047e-05]
[1737628704603,0.45288161,101740.0,101730.0,5.047e-05]
[1737628704819,0.51359979,101740.0,101730.0,5.047e-05]
[1737628705232,0.51147061,101740.0,101730.0,0.05005047]
[1737628705444,0.41318161,101740.0,101730.0,0.14834947]
[1737628705582,0.51147061,101740.0,101730.0,0.05005047]
[1737628705996,0.41318161,101740.0,101730.0,0.22464947]
[1737628706691,0.43618161,101740.0,101730.0,0.22464947]
[1737628706893,0.34036253,101740.0,101730.0,0.22464947]
[1737628707233,0.43865153,101740.0,101730.0,0.12635047]
[1737628707685,0.20857821,101740.0,101730.0,0.12635047]
[1737628707885,0.20857821,101740.0,101730.0,0.22464947]
[1737628708416,0.20857821,101740.0,101730.0,0.30611027]
[1737628710230,0.20857821,101740.0,101730.0,0.22564947]
[1737628710497,0.20857821,101740.0,101730.0,0.22679207]
[1737628710650,0.20857821,101740.0,101730.0,0.22579207]
[1737628710845,0.20857821,101740.0,101730.0,0.22679207]
[1737628710846,0.25705866,101740.0,101730.0,0.22679207]
[1737628711730,0.14582774,101740.0,101730.0,0.22579207]
[1737628711932,0.14582774,101740.0,101730.0,0.22679207]
[1737628712139,0.24411674,101740.0,101730.0,0.30836713]
[1737628712456,0.35534766,101740.0,101730.0,0.30836713]
[1737628712873,0.35534766,101740.0,101730.0,0.30785937]
[1737628713527,0.14582774,101740.0,101730.0,0.30785937]
[1737628714729,0.08384092,101740.0,101730.0,0.30685937]
[1737628714937,0.18068021,101740.0,101730.0,0.30685937]
[1737628715140,0.18068021,101740.0,101730.0,0.30785937]
[1737628715785,0.18068021,101740.0,101730.0,0.30685937]
[1737628716043,0.18068021,101740.0,101730.0,0.35375937]
[1737628716044,0.38333292,101740.0,101730.0,0.35375937]
[1737628716471,0.00523292,101740.0,101730.0,0.57375937]
[1737628717271,0.11123092,101770.0,101760.0,0.23107]
[1737628717452,0.20857821,101770.0,101760.0,0.23107]
[1737628717829,0.20857821,101770.0,101760.0,0.32841729]
[1737628718737,0.20857821,101770.0,101760.0,0.37381729]
[1737628718941,0.20857821,101770.0,101760.0,0.37481729]
[1737628719577,0.20857821,101770.0,101760.0,0.37581729]
[1737628721425,0.20857821,101770.0,101760.0,0.27847]
[1737628721585,0.30683821,101770.0,101760.0,0.27847]
[1737628723803,0.30713767,101770.0,101760.0,0.23307]
[1737628724145,0.20887767,101770.0,101760.0,0.23307]
[1737628724358,0.09764675,101770.0,101760.0,0.23307]
[1737628727988,0.18503218,101770.0,101760.0,0.23307]
[1737628728131,0.28329218,101770.0,101760.0,0.23307]
[1737628728330,0.18503218,101770.0,101760.0,0.23307]
[1737628729596,0.28329218,101770.0,101760.0,0.23307]
[1737628729996,0.3945231,101770.0,101760.0,0.052]
[1737628730193,0.46203151,101770.0,101760.0,0.052]
[1737628730392,0.42874267,101770.0,101760.0,0.052]
[1737628731062,0.3945231,101770.0,101760.0,0.052]
[1737628731307,0.3944231,101770.0,101760.0,0.052]
[1737628733549,0.30703767,101770.0,101760.0,0.052]
[1737628736157,0.30703767,101770.0,101760.0,0.002]
[1737628736354,0.30703767,101770.0,101760.0,0.052]
[1737628736848,0.46160453,101770.0,101760.0,0.002]
[1737628736977,0.42728496,101770.0,101760.0,0.002]
[1737628737174,0.53851588,101770.0,101760.0,0.002]
[1737628737571,0.58684501,101770.0,101760.0,0.002]
[1737628737722,0.69807593,101770.0,101760.0,0.002]
[1737628737927,0.58684501,101770.0,101760.0,0.002]
[1737628738131,0.69807593,101770.0,101760.0,0.002]
[1737628738333,0.8322955,101770.0,101760.0,0.002]
[1737628738549,0.88972721,101770.0,101760.0,0.002]
[1737628739335,0.88972721,101770.0,101760.0,0.001]
[1737628739902,0.39827,101760.0,101750.0,0.05]
[1737628740119,0.09828,101750.0,101740.0,0.1263426]
[1737628740293,0.30685821,101750.0,101740.0,0.1263426]
[1737628740947,0.30685821,101750.0,101740.0,0.2246316]
[1737628741266,0.30685821,101750.0,101740.0,0.1263426]
[1737628741786,0.30685821,101750.0,101740.0,0.1273426]
[1737628742860,0.30685821,101750.0,101740.0,0.1283426]
[1737628743694,0.19562729,101750.0,101740.0,0.1283426]
[1737628744668,0.19562729,101750.0,101740.0,0.2266316]
[1737628745038,0.09734729,101750.0,101740.0,0.35598532]
[1737628745445,0.09734729,101750.0,101740.0,0.2743316]
[1737628746714,0.20857821,101750.0,101740.0,0.2743316]
[1737628747055,0.09734729,101750.0,101740.0,0.2743316]
[1737628747695,0.20857821,101750.0,101740.0,0.2743316]
[1737628747896,0.39479503,101750.0,101740.0,0.2743316]
[1737628748501,0.49214232,101750.0,101740.0,0.1760426]
[1737628748722,0.49214232,101750.0,101740.0,0.0783426]
[1737628748881,0.39479503,101750.0,101740.0,0.1283426]
[1737628749515,0.39479503,101750.0,101740.0,0.0021426]
[1737628749728,0.39479503,101750.0,101740.0,0.0521426]
[1737628752321,0.30685821,101750.0,101740.0,0.0021426]
[1737628752676,0.30685821,101750.0,101740.0,0.0521426]
[1737628753385,0.30685821,101750.0,101740.0,0.0021426]
[1737628754188,0.4042055,101750.0,101740.0,0.0021426]
[1737628754454,0.35375821,101750.0,101740.0,0.0021426]
[1737628754657,0.52126662,101750.0,101740.0,0.0021426]
[1737628755454,0.54426662,101750.0,101740.0,0.0021426]
[1737628755809,1.48089754,101750.0,101740.0,0.0021426]
[1737628755991,1.49114094,101750.0,101740.0,0.0021426]
[1737628756131,1.43813523,101750.0,101740.0,0.0021426]
[1737628756728,1.43813523,101750.0,101740.0,0.0011426]
[1737628756934,1.38404923,101750.0,101740.0,0.0001426]
[1737628757138,1.41304923,101750.0,101740.0,0.0001426]
[1737628757347,1.26152623,101750.0,101740.0,0.0001426]
[1737628761105,1.24152623,101750.0,101740.0,0.0001426]
[1737628762555,1.24152623,101750.0,101720.0,0.0001425]
[1737628762556,0.2507,101730.0,101720.0,0.0001425]
[1737628762751,0.74269007,101730.0,101720.0,0.00029411]
[1737628762962,0.79661546,101730.0,101720.0,0.00029411]
[1737628763326,0.84481546,101730.0,101720.0,0.00029411]
[1737628763750,1.01512546,101730.0,101720.0,0.00029411]
[1737628763950,1.01512546,101730.0,101720.0,0.00129411]
[1737628764171,1.01512546,101730.0,101720.0,0.00229411]
[1737628764373,1.01512546,101730.0,101720.0,0.00129411]
[1737628764691,1.02412546,101730.0,101720.0,0.00129411]
[1737628765254,1.08308546,101730.0,101720.0,0.00129411]
[1737628765470,1.08308546,101730.0,101720.0,0.00029411]
[1737628765828,1.09208546,101730.0,101720.0,0.00029411]
[1737628766032,1.12808546,101730.0,101720.0,0.00029411]
[1737628766224,1.16414546,101730.0,101720.0,0.00029411]
[1737628766418,1.18393619,101730.0,101720.0,0.00029411]
[1737628766566,1.61307119,101730.0,101720.0,0.00029411]
[1737628766973,1.58438314,101730.0,101720.0,0.00029411]
[1737628767188,1.50241814,101730.0,101720.0,0.00029411]
[1737628767404,1.48195814,101730.0,101720.0,0.00029411]
[1737628768875,1.22461575,101730.0,101720.0,0.00029411]
[1737628769111,1.21667053,101730.0,101720.0,0.00029411]
[1737628771097,1.22613564,101730.0,101720.0,0.00029411]
[1737628771453,1.17733564,101730.0,101720.0,0.00029411]
[1737628774042,0.85601491,101730.0,101720.0,0.12749411]
[1737628774698,0.94541981,101730.0,101720.0,0.12749411]
[1737628775338,0.85601491,101730.0,101720.0,0.12749411]
[1737628776498,0.82316013,101730.0,101720.0,0.12749411]
[1737628777116,0.79063324,101730.0,101720.0,0.12749411]
[1737628778143,0.79063324,101730.0,101720.0,0.07749411]
[1737628778347,0.79063324,101730.0,101720.0,0.12749411]
[1737628778972,0.95315518,101730.0,101720.0,0.00029411]
[1737628779211,1.34481218,101730.0,101720.0,0.00029411]
[1737628779596,1.43275905,101730.0,101720.0,0.00029411]
[1737628779995,1.4361672,101730.0,101720.0,0.00029411]
[1737628780203,1.4829672,101730.0,101720.0,0.00029411]
[1737628780737,1.49952284,101730.0,101720.0,1e-08]
[1737628780895,1.24206346,101730.0,101720.0,1e-08]
[1737628781297,1.64920804,101720.0,101710.0,0.00016251]
[1737628781635,2.09221969,101720.0,101710.0,0.00021303]
[1737628782253,2.13117969,101720.0,101710.0,0.00021303]
[1737628782549,2.19515226,101720.0,101710.0,0.00021303]
[1737628783166,2.18615226,101720.0,101710.0,0.00021303]
[1737628783573,2.19515226,101720.0,101710.0,0.00021303]
[1737628783749,2.27615226,101720.0,101710.0,0.00021303]
[1737628783958,2.28515226,101720.0,101710.0,0.00021303]
[1737628784117,1.288978,101710.0,101700.0,0.0153255]
[1737628784342,3.70037304,101710.0,101700.0,0.0153255]
[1737628784848,3.58758604,101710.0,101700.0,0.0153255]
[1737628785047,3.62352108,101710.0,101700.0,0.0153255]
[1737628785272,2.76016708,101710.0,101700.0,0.0153255]
[1737628785530,2.69791375,101710.0,101700.0,0.0153255]
[1737628785701,2.70691375,101710.0,101700.0,0.0153255]
[1737628786395,2.75306515,101710.0,101700.0,0.0153255]
[1737628786621,0.348347,101680.0,101670.0,0.1766]
[1737628786827,0.65839811,101680.0,101670.0,0.17665052]
[1737628787026,0.69439811,101680.0,101670.0,0.17665052]
[1737628787186,0.73033315,101680.0,101670.0,0.17665052]
[1737628787384,1.43123169,101680.0,101670.0,5.052e-05]
[1737628787628,1.11817069,101680.0,101670.0,5.052e-05]
[1737628787870,0.87609265,101680.0,101670.0,5.052e-05]
[1737628788014,0.76095375,101680.0,101670.0,5.052e-05]
[1737628788382,0.64972283,101680.0,101670.0,5.052e-05]
[1737628788582,0.61592521,101680.0,101670.0,5.052e-05]
[1737628788785,0.72715613,101680.0,101670.0,5.052e-05]
[1737628788920,0.82556103,101680.0,101670.0,5.052e-05]
[1737628789129,0.81656103,101680.0,101670.0,5.052e-05]
[1737628789329,0.72715613,101680.0,101670.0,5.052e-05]
[1737628789941,0.73615613,101680.0,101670.0,5.052e-05]
[1737628791007,0.62492521,101680.0,101670.0,5.052e-05]
[1737628791180,0.63392521,101680.0,101670.0,0.05005052]
[1737628791397,0.26257821,101680.0,101670.0,0.17575052]
[1737628791600,0.21757821,101680.0,101670.0,0.20317622]
[1737628791807,0.22657821,101680.0,101670.0,0.27410752]
[1737628792437,0.20857821,101680.0,101670.0,0.27410752]
[1737628792645,0.11123092,101690.0,101680.0,0.05]
[1737628792850,0.14729092,101710.0,101700.0,0.1783]
[1737628793059,0.24463821,101710.0,101700.0,0.276628]
[1737628795191,0.24463821,101710.0,101700.0,0.2767705]
[1737628797042,0.24463821,101710.0,101700.0,0.1784425]
[1737628797217,0.24463821,101710.0,101700.0,0.2767705]
[1737628797630,0.20857821,101710.0,101700.0,0.2767705]
[1737628799571,0.58910778,101720.0,101710.0,0.227018]
[1737628799572,0.09754678,101720.0,101710.0,0.227018]
[1737628799753,0.19489407,101720.0,101710.0,0.27434805]
[1737628800357,0.38789786,101720.0,101710.0,0.31954805]
[1737628800714,0.38789786,101720.0,101710.0,0.38954805]
[1737628801591,0.38789786,101720.0,101710.0,0.342218]
[1737628802211,0.38789786,101720.0,101710.0,0.343218]
[1737628802681,0.38789786,101720.0,101710.0,0.272218]
[1737628802896,0.29647607,101720.0,101710.0,0.222218]
[1737628803101,0.42858269,101720.0,101710.0,0.1749]
[1737628803270,0.39478507,101720.0,101710.0,0.1249]
[1737628803421,0.49213236,101720.0,101710.0,0.1249]
[1737628803860,0.49213236,101720.0,101710.0,0.0797]
[1737628804092,0.42858269,101720.0,101710.0,0.0797]
[1737628804291,0.39478507,101720.0,101710.0,0.0797]
[1737628805369,0.3,101710.0,101700.0,0.0001425]
[1737628805598,0.50857821,101710.0,101700.0,0.0984705]
[1737628805774,0.39734729,101710.0,101700.0,0.0984705]
[1737628805986,0.50857821,101710.0,101700.0,0.1484705]
[1737628806194,0.39734729,101710.0,101700.0,0.0984705]
[1737628806554,0.39734729,101710.0,101700.0,0.0994705]
[1737628806751,0.39734729,101710.0,101700.0,0.1494705]
[1737628807228,0.49566529,101710.0,101700.0,0.0011425]
[1737628807438,0.60689621,101710.0,101700.0,0.0011425]
[1737628807640,0.60689621,101710.0,101700.0,0.0511425]
[1737628807816,0.60689621,101710.0,101700.0,0.0021425]
[1737628808020,0.60689621,101710.0,101700.0,0.0521425]
[1737628808545,0.7042435,101710.0,101700.0,0.0021425]
[1737628809270,0.60689621,101710.0,101700.0,0.0021425]
[1737628809981,0.60689621,101710.0,101700.0,0.0521425]
[1737628810237,0.60689621,101710.0,101700.0,0.0021425]
[1737628810454,0.96637917,101710.0,101700.0,0.0011425]
[1737628810652,1.34094517,101710.0,101700.0,0.0001425]
[1737628810873,1.43829246,101710.0,101700.0,0.0001425]
[1737628811076,1.43829246,101710.0,101700.0,0.0011425]
[1737628811287,1.43829246,101710.0,101700.0,0.0001425]
[1737628811450,1.45829246,101710.0,101700.0,0.0001425]
[1737628811643,1.45829246,101710.0,101700.0,0.0011425]
[1737628812079,1.53479246,101710.0,101700.0,0.0011425]
[1737628812291,0.098357,101670.0,101660.0,0.0970582]
[1737628812455,0.30693521,101670.0,101660.0,0.07749302]
[1737628814012,0.30693521,101670.0,101660.0,0.07849302]
[1737628815074,0.30693521,101670.0,101660.0,0.07949302]
[1737628815518,0.09734729,101670.0,101660.0,0.22786002]
[1737628815745,0.19570429,101670.0,101660.0,0.12949302]
[1737628816118,0.30693521,101670.0,101660.0,0.12949302]
[1737628816969,0.19570429,101670.0,101660.0,0.12949302]
[1737628817378,0.30693521,101670.0,101660.0,0.12949302]
[1737628817549,0.30693521,101670.0,101660.0,0.12849302]
[1737628817993,0.30693521,101670.0,101660.0,0.12949302]
[1737628818378,0.30693521,101670.0,101660.0,0.12849302]
[1737628820254,0.19570429,101670.0,101660.0,0.22686002]
[1737628820458,0.30693521,101670.0,101660.0,0.22686002]
[1737628820899,0.19570429,101670.0,101660.0,0.22686002]
[1737628821718,0.30693521,101670.0,101660.0,0.12849302]
[1737628823890,0.30693521,101670.0,101660.0,0.22686002]
[1737628824603,0.09734729,101670.0,101660.0,0.31309298]
[1737628825186,0.20857821,101670.0,101660.0,0.31309298]
[1737628826529,0.09734729,101670.0,101660.0,0.31309298]
[1737628827276,0.09734729,101670.0,101660.0,0.26309298]
[1737628827481,0.09734729,101670.0,101660.0,0.31309298]
[1737628827890,0.09734729,101670.0,101660.0,0.22686002]
[1737628828936,0.53972687,101690.0,101680.0,0.05]
[1737628829114,0.53972687,101690.0,101670.0,0.0759]
[1737628829115,0.3,101680.0,101670.0,0.0759]
[1737628829461,0.098357,101670.0,101660.0,0.08389302]
[1737628829678,0.41816613,101670.0,101660.0,0.13389302]
[1737628829943,0.30693521,101670.0,101660.0,0.13289302]
[1737628830113,0.92187338,101670.0,101660.0,0.00019302]
[1737628830476,1.58133038,101670.0,101660.0,0.00019302]
[1737628830872,1.58133038,101670.0,101660.0,0.00119302]
[1737628831084,1.56326538,101670.0,101660.0,0.00119302]
[1737628831508,1.56326538,101670.0,101660.0,0.00019302]
[1737628831711,1.48576438,101670.0,101660.0,0.00019302]
[1737628832056,1.48576438,101670.0,101660.0,0.00119302]
[1737628833275,0.90307338,101670.0,101660.0,0.00119302]
[1737628833489,1.51500338,101670.0,101660.0,0.00119302]
[1737628833702,1.53500338,101670.0,101660.0,0.00119302]
[1737628834096,1.06387338,101670.0,101660.0,0.00119302]
[1737628834354,1.00150507,101670.0,101660.0,0.00119302]
[1737628834582,1.04622303,101670.0,101660.0,0.00119302]
[1737628834763,1.04622303,101670.0,101660.0,0.00019302]
[1737628834988,1.09845707,101670.0,101660.0,0.00019302]
[1737628835325,1.12142538,101670.0,101660.0,0.00019302]
[1737628835553,1.14142538,101670.0,101660.0,0.00019302]
[1737628836718,1.13133407,101670.0,101660.0,0.00019302]
[1737628836917,1.05692072,101670.0,101660.0,0.00019302]
[1737628837150,1.09115476,101670.0,101660.0,0.00019302]
[1737628837375,1.10915476,101670.0,101660.0,0.00019302]
[1737628837544,1.13212307,101670.0,101660.0,0.00019302]
[1737628837745,1.17718307,101670.0,101660.0,0.00019302]
[1737628837969,1.16818307,101670.0,101660.0,0.00019302]
[1737628838155,1.17718307,101670.0,101660.0,0.00019302]
[1737628840964,1.02157582,101670.0,101660.0,0.00019302]
[1737628841170,0.5569039,101670.0,101660.0,0.13109302]
[1737628841367,0.24976429,101670.0,101660.0,0.27946002]
[1737628841568,0.36099521,101670.0,101660.0,0.18109302]
[1737628841765,0.36099521,101670.0,101660.0,0.13349302]
[1737628842372,0.56957342,101670.0,101660.0,0.08349302]
[1737628842564,0.56957342,101670.0,101660.0,0.13349302]
[1737628842770,0.36099521,101670.0,101660.0,0.13349302]
[1737628842989,1.22968671,101670.0,101630.0,0.0501426]
[1737628843215,0.66819513,101640.0,101630.0,0.00064725]
[1737628843387,0.98961413,101640.0,101630.0,0.00064725]
[1737628843564,1.08217239,101640.0,101630.0,0.00064725]
[1737628843764,1.17951968,101640.0,101630.0,0.00064725]
[1737628844174,1.07951968,101640.0,101630.0,0.00064725]
[1737628844403,1.14751968,101640.0,101630.0,0.00064725]
[1737628844673,1.15651968,101640.0,101630.0,0.00064725]
[1737628844871,1.16551968,101640.0,101630.0,0.00064725]
[1737628846183,1.14551968,101640.0,101630.0,0.00064725]
[1737628846360,0.77875339,101640.0,101630.0,0.00064725]
[1737628846564,0.88467639,101640.0,101630.0,0.00064725]
[1737628846760,0.77875339,101640.0,101630.0,0.00064725]
[1737628847152,1.01982404,101640.0,101630.0,0.00064725]
[1737628847752,1.00798842,101640.0,101630.0,0.00064725]
[1737628847958,0.91804913,101640.0,101630.0,0.00064725]
[1737628848506,0.82070184,101640.0,101630.0,0.00064725]
[1737628848706,0.92850184,101640.0,101630.0,0.00064725]
[1737628848918,0.85472342,101640.0,101630.0,0.00064725]
[1737628849517,0.86470511,101640.0,101630.0,0.00064725]
[1737628849732,1.28378911,101640.0,101630.0,0.00064725]
[1737628849939,1.3811364,101640.0,101630.0,0.00064725]
[1737628850141,0.9620524,101640.0,101630.0,0.00064725]
[1737628850541,0.9619524,101640.0,101630.0,0.00064725]
[1737628850748,1.0737644,101640.0,101630.0,0.00064725]
[1737628851120,0.77679946,101640.0,101630.0,0.00064725]
[1737628851314,0.77679946,101640.0,101630.0,0.05064725]
[1737628852065,0.75379946,101640.0,101630.0,0.05064725]
[1737628852263,0.47301028,101640.0,101630.0,0.05064725]
[1737628852472,0.32301028,101640.0,101630.0,0.05064725]
[1737628852845,0.47301028,101640.0,101630.0,0.05064725]
[1737628853043,0.47301028,101640.0,101630.0,0.10491377]
[1737628853271,0.47301028,101640.0,101630.0,0.18451377]
[1737628853437,0.47291028,101640.0,101630.0,0.13024725]
[1737628854011,0.47291028,101640.0,101630.0,0.22864325]
[1737628854214,0.56071593,101640.0,101630.0,0.13024725]
[1737628854426,0.41071593,101640.0,101630.0,0.13024725]
[1737628854609,0.45008093,101640.0,101630.0,0.13024725]
[1737628855956,0.45038039,101640.0,101630.0,0.22864325]
[1737628856894,0.56161131,101640.0,101630.0,0.08024725]
[1737628857099,0.90416957,101640.0,101630.0,0.05064725]
[1737628857407,0.90416957,101640.0,101630.0,0.00064725]
[1737628857787,0.90416957,101640.0,101630.0,0.05064725]
[1737628858780,0.81636392,101640.0,101630.0,0.05064725]
[1737628858991,0.91371121,101640.0,101630.0,0.05064725]
[1737628860035,0.78082724,101640.0,101630.0,0.05064725]
[1737628860240,0.61257474,101640.0,101630.0,0.05064725]
[1737628860493,0.51257474,101640.0,101630.0,0.23054325]
[1737628860653,0.15501175,101640.0,101630.0,0.23054325]
[1737628861314,0.26624267,101640.0,101630.0,0.23054325]
[1737628861512,0.26624267,101640.0,101630.0,0.32789054]
[1737628861711,0.36462867,101640.0,101630.0,0.13214725]
[1737628862055,0.56366524,101640.0,101630.0,0.13214725]
[1737628862392,0.9062235,101640.0,101630.0,0.00064725]
[1737628862598,1.00357079,101640.0,101630.0,0.00064725]
[1737628863205,1.45327179,101640.0,101630.0,0.00064725]
[1737628864024,1.35769579,101640.0,101630.0,0.00064725]
[1737628864228,1.5794295,101640.0,101630.0,0.00064725]
[1737628864633,1.5994295,101640.0,101630.0,0.00064725]
[1737628864844,1.6464295,101640.0,101630.0,0.00064725]
[1737628865047,1.7053895,101640.0,101630.0,0.00064725]
[1737628865265,1.4894695,101640.0,101630.0,0.00064725]
[1737628865469,1.24169785,101640.0,101630.0,0.00064725]
[1737628866309,1.34169785,101640.0,101630.0,0.00064725]
[1737628866521,1.29469785,101640.0,101630.0,0.00064725]
[1737628867550,1.14211785,101640.0,101630.0,0.00064725]
[1737628867764,3.38551385,101640.0,101630.0,0.00064725]
[1737628867976,3.38551385,101640.0,101630.0,0.05064725]
[1737628867977,1.07255959,101640.0,101630.0,0.05064725]
[1737628868184,0.68832867,101640.0,101630.0,0.05571198]
[1737628868393,0.68832867,101640.0,101630.0,0.05064725]
[1737628868604,0.83832867,101640.0,101630.0,0.05064725]
[1737628868810,0.94955959,101640.0,101630.0,0.05064725]
[1737628869644,0.98358117,101640.0,101630.0,0.05064725]
[1737628869848,1.08092846,101640.0,101630.0,0.05064725]
[1737628870062,1.21646514,101640.0,101630.0,0.05064725]
[1737628870265,1.21646514,101640.0,101630.0,0.00064725]
[1737628870680,1.23946514,101640.0,101630.0,0.00064725]
[1737628870887,1.23946514,101640.0,101630.0,0.05064725]
[1737628871511,1.23946514,101640.0,101630.0,0.00064725]
[1737628871716,1.11211785,101640.0,101630.0,0.05064725]
[1737628872119,1.11211785,101640.0,101630.0,0.00064725]
[1737628872329,1.20015983,101640.0,101630.0,0.00064725]
[1737628872529,1.38889983,101640.0,101630.0,0.00064725]
[1737628872931,1.39911115,101640.0,101630.0,0.00064725]
[1737628873237,1.49645844,101640.0,101630.0,0.00064725]
[1737628873392,1.39645844,101640.0,101630.0,0.00064725]
[1737628873827,1.38624712,101640.0,101630.0,0.00064725]
[1737628874030,1.39645844,101640.0,101630.0,0.00064725]
[1737628874222,1.29911115,101640.0,101630.0,0.00064725]
[1737628874967,1.31911115,101640.0,101630.0,0.00064725]
[1737628875467,1.40141115,101640.0,101630.0,0.00064725]
[1737628875707,1.31336917,101640.0,101630.0,0.00064725]
[1737628875878,1.31336917,101640.0,101590.0,0.0480425]
[1737628875879,2.00251405,101600.0,101590.0,0.0480425]
[1737628876021,2.21109226,101600.0,101590.0,0.09809291]
[1737628876268,2.21109226,101600.0,101590.0,0.04809291]
[1737628876470,2.21109226,101600.0,101590.0,0.09809291]
[1737628877074,4.24478315,101600.0,101590.0,0.00019291]
[1737628877288,0.0808,101530.0,101460.0,0.01540293]
[1737628877486,0.908132,101520.0,101510.0,0.00976143]
[1737628877702,1.07007304,101520.0,101510.0,6e-08]
[1737628877919,0.70337072,101520.0,101510.0,6e-08]
[1737628878127,0.91128902,101520.0,101510.0,6e-08]
[1737628878333,0.84094817,101520.0,101510.0,6e-08]
[1737628878559,0.84119603,101520.0,101510.0,6e-08]
[1737628878786,0.68728913,101520.0,101510.0,6e-08]
[1737628879010,0.67328913,101520.0,101510.0,6e-08]
[1737628879216,1.131068,101510.0,101500.0,0.49658973]
[1737628879421,1.85444554,101510.0,101500.0,0.49664935]
[1737628879619,2.06404335,101510.0,101500.0,0.49664935]
[1737628879883,0.57306956,101510.0,101500.0,0.49664935]
[1737628880128,0.43531175,101510.0,101500.0,0.59517135]
[1737628880348,0.09734729,101510.0,101500.0,0.59517135]
[1737628880564,0.26531175,101510.0,101500.0,0.59517135]
[1737628880981,0.27431175,101510.0,101500.0,0.59517135]
[1737628881410,0.28331175,101510.0,101500.0,0.59517135]
[1737628881820,0.27431175,101510.0,101500.0,0.59517135]
[1737628882121,0.29431175,101510.0,101500.0,0.49664935]
[1737628882296,0.27431175,101510.0,101500.0,0.59517135]
[1737628883331,0.26531175,101510.0,101500.0,0.59517135]
[1737628883534,0.09734729,101510.0,101500.0,0.59517135]
[1737628884127,0.02,101530.0,101520.0,0.098502]
[1737628884319,0.3,101520.0,101510.0,0.295514]
[1737628884519,0.39734729,101520.0,101510.0,0.295514]
[1737628888652,0.43675729,101520.0,101510.0,0.295514]
[1737628889058,0.118512,101510.0,101500.0,0.49664935]
[1737628889279,0.30518347,101510.0,101500.0,0.49664935]
[1737628889716,0.19585929,101510.0,101500.0,0.59517135]
[1737628889847,0.21585929,101510.0,101500.0,0.49664935]
[1737628890067,0.11734729,101510.0,101500.0,0.59517135]
[1737628890509,0.09734729,101510.0,101500.0,0.59617135]
[1737628891231,0.09734729,101510.0,101500.0,0.59517135]
[1737628891510,0.10434729,101510.0,101500.0,0.59517135]
[1737628891717,0.19427662,101510.0,101500.0,0.59517135]
[1737628891901,0.20285929,101510.0,101500.0,0.59517135]